{"text_format":"3","workbook":"xlsx","n_sheets":6,"sheets":["Nhật ký Cuộc gọi Bán hàng","Thông tin Liên hệ Khách hàng","Trước Khi Gọi","Gọi Lần Đầu","Thông tin Bán hàng","Theo dõi Tiếp"],"not_rendered":{"defined_names":14},"read":"whole","date_system":"1900"}

{"sheet":"Nhật ký Cuộc gọi Bán hàng","index":0,"n_rows":13,"n_cols":7,"rows_kept":13}
[null," Tên Công ty"]
[null,"Nhật ký Cuộc gọi Bán hàng"]
[null,"Cuộc gọi số","Khách hàng","Công ty","Ngày","Thời gian","Ghi chú"]
[null,1,"Jeff Smith",{"$f":"IF(Nhật_ký_Cuộc_gọi_Bán_hàng[[#This Row],[Khách hàng]]=\"\",\"\",IFERROR(VLOOKUP(Nhật_ký_Cuộc_gọi_Bán_hàng[[#This Row],[Khách hàng]],Client_contact_info[],2,0),\"Not Found\"))","v":"Proseware, Inc."},{"$f":"TODAY()-5","v":"2017-10-08"},"08:30:00"]
[null,2,"Radim Petratur",{"$f":"IF(Nhật_ký_Cuộc_gọi_Bán_hàng[[#This Row],[Khách hàng]]=\"\",\"\",IFERROR(VLOOKUP(Nhật_ký_Cuộc_gọi_Bán_hàng[[#This Row],[Khách hàng]],Client_contact_info[],2,0),\"Not Found\"))","v":"Litware, Inc."},{"$f":"TODAY()-5","v":"2017-10-08"},"09:00:00"]
[null,3,"Phyllis Harris",{"$f":"IF(Nhật_ký_Cuộc_gọi_Bán_hàng[[#This Row],[Khách hàng]]=\"\",\"\",IFERROR(VLOOKUP(Nhật_ký_Cuộc_gọi_Bán_hàng[[#This Row],[Khách hàng]],Client_contact_info[],2,0),\"Not Found\"))","v":"Northwind Traders"},"2017-10-08","09:30:00"]
[null,4,"Aaron Nicholls",{"$f":"IF(Nhật_ký_Cuộc_gọi_Bán_hàng[[#This Row],[Khách hàng]]=\"\",\"\",IFERROR(VLOOKUP(Nhật_ký_Cuộc_gọi_Bán_hàng[[#This Row],[Khách hàng]],Client_contact_info[],2,0),\"Not Found\"))","v":"Lucerne Publishing"},"2017-10-08","10:00:00"]
[null,5,"Brian Welcker",{"$f":"IF(Nhật_ký_Cuộc_gọi_Bán_hàng[[#This Row],[Khách hàng]]=\"\",\"\",IFERROR(VLOOKUP(Nhật_ký_Cuộc_gọi_Bán_hàng[[#This Row],[Khách hàng]],Client_contact_info[],2,0),\"Not Found\"))","v":"Margie's Travel"},"2017-10-08","10:30:00"]
[null,6,"Jeff Smith",{"$f":"IF(Nhật_ký_Cuộc_gọi_Bán_hàng[[#This Row],[Khách hàng]]=\"\",\"\",IFERROR(VLOOKUP(Nhật_ký_Cuộc_gọi_Bán_hàng[[#This Row],[Khách hàng]],Client_contact_info[],2,0),\"Not Found\"))","v":"Proseware, Inc."},{"$f":"TODAY()-3","v":"2017-10-10"},"11:00:00"]
[null,7,"Radim Petratur",{"$f":"IF(Nhật_ký_Cuộc_gọi_Bán_hàng[[#This Row],[Khách hàng]]=\"\",\"\",IFERROR(VLOOKUP(Nhật_ký_Cuộc_gọi_Bán_hàng[[#This Row],[Khách hàng]],Client_contact_info[],2,0),\"Not Found\"))","v":"Litware, Inc."},{"$f":"TODAY()-3","v":"2017-10-10"},"11:30:00"]
[null,8,"Jeff Smith",{"$f":"IF(Nhật_ký_Cuộc_gọi_Bán_hàng[[#This Row],[Khách hàng]]=\"\",\"\",IFERROR(VLOOKUP(Nhật_ký_Cuộc_gọi_Bán_hàng[[#This Row],[Khách hàng]],Client_contact_info[],2,0),\"Not Found\"))","v":"Proseware, Inc."},{"$f":"TODAY()-1","v":"2017-10-12"},"12:00:00"]
[null,9,"Brian Welcker",{"$f":"IF(Nhật_ký_Cuộc_gọi_Bán_hàng[[#This Row],[Khách hàng]]=\"\",\"\",IFERROR(VLOOKUP(Nhật_ký_Cuộc_gọi_Bán_hàng[[#This Row],[Khách hàng]],Client_contact_info[],2,0),\"Not Found\"))","v":"Margie's Travel"},{"$f":"TODAY()-1","v":"2017-10-12"},"12:30:00"]
[null,10,"Brian Welcker",{"$f":"IF(Nhật_ký_Cuộc_gọi_Bán_hàng[[#This Row],[Khách hàng]]=\"\",\"\",IFERROR(VLOOKUP(Nhật_ký_Cuộc_gọi_Bán_hàng[[#This Row],[Khách hàng]],Client_contact_info[],2,0),\"Not Found\"))","v":"Margie's Travel"},{"$f":"TODAY()","v":"2017-10-13"},"13:00:00"]

{"sheet":"Thông tin Liên hệ Khách hàng","index":1,"n_rows":8,"n_cols":8,"rows_kept":8}
[null,{"$f":"Tên_Công_ty","v":" Tên Công ty"}]
[null,"Thông tin Liên hệ Khách hàng"]
[null,"Tên Khách hàng","Tên Công ty","Địa chỉ","Thành phố, ZIP Tiểu bang","Điện thoại Chính","Điện thoại Phụ","Email"]
[null,"Radim Petratur","Litware, Inc.","100 Main St","Cherrytown, NH 123456","(541) 555-0135","(541) 555-0136","radim@litwareinc.com"]
[null,"Aaron Nicholls","Lucerne Publishing","567 Second Ave","Spaulding, NY 23456","(425) 555-0198","(425) 555-0199","aaron@lucernepublishing.com"]
[null,"Brian Welcker","Margie's Travel","987 Orange St","Mountain View, IL 34567","(888) 555-0125","(888) 555-0126","brian@margiestravel.com"]
[null,"Phyllis Harris","Northwind Traders","890 N 3rd Ave","Chatham, CA 45678","(541) 555-0175","(541) 555-0176","phyllis@northwindtraders.com"]
[null,"Jeff Smith","Proseware, Inc.","123 Major Dr","Shelbyville, MA 56789","(509) 555-0150","(509) 555-0151","jeff@proseware.com"]

{"sheet":"Trước Khi Gọi","index":2,"n_rows":13,"n_cols":3,"rows_kept":13}
[null,{"$f":"Tên_Công_ty","v":" Tên Công ty"}]
[null,"Danh sách kiểm tra Cuộc gọi Bán hàng"]
[null,"Hộp kiểm","Trước khi gọi"]
[null,null,"Xem lại lịch sử khách hàng"]
[null,null,"Xem lại lịch sử lãnh đạo của khách hàng"]
[null,null,"Xem lại các ưu tiên & chiến lược bán hàng"]
[null,null,"Thêm mục"]
[null,null,"Thêm mục"]
[null,null,"Thêm mục"]
[null,null,"Thêm mục"]
[null,null,"Thêm mục"]
[null,null,"Thêm mục"]
[null,null,"Thêm mục"]

{"sheet":"Gọi Lần Đầu","index":3,"n_rows":13,"n_cols":3,"rows_kept":13}
[null,{"$f":"Tên_Công_ty","v":" Tên Công ty"}]
[null,"Danh sách kiểm tra Cuộc gọi Bán hàng"]
[null,"Hộp kiểm","Gọi lần đầu"]
[null,null,"Gọi trực tiếp cho người thích hợp"]
[null,null,"Giới thiệu rõ ràng"]
[null,null,"Thêm mục"]
[null,null,"Thêm mục"]
[null,null,"Thêm mục"]
[null,null,"Thêm mục"]
[null,null,"Thêm mục"]
[null,null,"Thêm mục"]
[null,null,"Thêm mục"]
[null,null,"Thêm mục"]

{"sheet":"Thông tin Bán hàng","index":4,"n_rows":13,"n_cols":3,"rows_kept":13}
[null,{"$f":"Tên_Công_ty","v":" Tên Công ty"}]
[null,"Danh sách kiểm tra Cuộc gọi Bán hàng"]
[null,"Hộp kiểm","Thông tin bán hàng"]
[null,null,"Giới thiệu rõ ràng và hấp dẫn về sản phẩm/dịch vụ"]
[null,null,"Đề cập đến mọi thông tin cơ bản"]
[null,null,"Đề cập đến sự hiện diện trên web (ví dụ: trang web, mạng xã hội)"]
[null,null,"Thêm mục"]
[null,null,"Thêm mục"]
[null,null,"Thêm mục"]
[null,null,"Thêm mục"]
[null,null,"Thêm mục"]
[null,null,"Thêm mục"]
[null,null,"Thêm mục"]

{"sheet":"Theo dõi Tiếp","index":5,"n_rows":13,"n_cols":3,"rows_kept":13}
[null,{"$f":"Tên_Công_ty","v":" Tên Công ty"}]
[null,"Danh sách kiểm tra Cuộc gọi Bán hàng"]
[null,"Hộp kiểm","Thông tin theo dõi tiếp"]
[null,null,"Thông tin liên hệ của khách hàng"]
[null,null,"Thông tin cá nhân của khách hàng"]
[null,null,"Ưu tiên của khách hàng"]
[null,null,"Đã lên lịch liên hệ lại?"]
[null,null,"Đã bán hàng?"]
[null,null,"Thêm mục"]
[null,null,"Thêm mục"]
[null,null,"Thêm mục"]
[null,null,"Thêm mục"]
[null,null,"Thêm mục"]